fUSD/lending_fUSD_20250227
["ID","MTS","AMOUNT","RATE_DAILY","PERIOD"]
[354724265,1740645702144,420.0,0.00029403,5]
[354724266,1740645708772,379.0,0.00029403,5]
[354724267,1740645714232,340.0,0.00029403,5]
[354724268,1740645717600,201.13836433,0.000329,6]
[354724269,1740645717879,201.13836433,0.00038233,8]
[354724270,1740645718174,201.13836433,0.00043567,9]
[354724271,1740645718469,201.13836433,0.000489,11]
[354724272,1740645721502,313.0,0.00029403,5]
[354724273,1740645728851,281.0,0.00029403,5]
[354724274,1740645737144,249.0,0.00029403,5]
[354724275,1740645743446,223.0,0.00029403,5]
[354724276,1740645744989,500.0,0.00031124,30]
[354724277,1740645745137,500.0,0.00031124,30]
[354724278,1740645745463,500.0,0.00031124,30]
[354724279,1740645746138,500.0,0.00031124,30]
[354724280,1740645746481,500.0,0.00031124,30]
[354724281,1740645746834,500.0,0.00031124,30]
[354724282,1740645750561,206.0,0.00029403,5]
[354724283,1740645757691,184.0,0.00029403,5]
[354724284,1740645764436,166.0,0.00029403,5]
[354724285,1740645783473,150.0,0.00029403,5]
[354724286,1740645903312,150.0,0.00034548,10]
[354724287,1740645917462,2382.0,0.0004,120]
[354724288,1740645922058,201.13836433,0.000361,7]
[354724289,1740645922384,201.13836433,0.000457,10]
[354724290,1740645947863,150.0,0.00020157,7]
[354724291,1740645975222,481.37008936,0.00049315,5]
[354724293,1740646020343,-5272.62,0.000149,2]
[354724294,1740646044920,500.0,0.00031124,30]
[354724295,1740646045121,991.93343584,0.00031124,30]
[354724296,1740646049555,500.0,0.00031124,30]
[354724297,1740646062892,154.13805979,0.00041775,15]
[354724298,1740646067893,154.13805979,0.0004715,15]
[354724299,1740646125643,201.13836433,0.000329,6]
[354724300,1740646125936,201.13836433,0.000489,11]
[354724301,1740646134276,-1357.55,0.000149,2]
[354724302,1740646134304,-154.13805986,0.000149,2]
[354724303,1740646134330,-313.71295702,0.000149,2]
[354724304,1740646134356,-585.12407454,0.000149,2]
[354724305,1740646162443,3377.98725457,0.00043567,15]
[354724306,1740646167380,3377.98725457,0.00048344,15]
[354724307,1740646182314,234.0,0.00029403,5]
[354724308,1740646184322,-922.37111344,0.000149,2]
[354724309,1740646190072,204.0,0.00029403,5]
[354724310,1740646197241,188.0,0.00029403,5]
[354724311,1740646203816,164.0,0.00029403,5]
[354724312,1740646209633,-1870.49206666,0.000149,2]
[354724313,1740646209662,-163.87434646,0.000149,2]
[354724314,1740646212385,155.0,0.00029403,5]
[354724316,1740646232386,-6.91851915,0.000149,2]
[354724317,1740646232397,-150.0,0.00014913,2]
[354724318,1740646232407,-1937.89755061,0.00014999,2]
[354724319,1740646232416,-300.0,0.00014999,2]
[354724320,1740646232426,-183.40387084,0.00014999,2]
[354724321,1740646232439,-217.97537401,0.00014999,2]
[354724322,1740646232448,-158.62694375,0.00014999,2]
[354724323,1740646232458,-300.0,0.00014999,2]
[354724324,1740646232467,-1435.04609016,0.00015,2]
[354724325,1740646232493,-838.4778,0.00015,2]
[354724326,1740646232553,-1032.43087862,0.00015,2]
[354724327,1740646232564,-2988.37311365,0.00015,2]
[354724328,1740646232656,-5458.6877731,0.00015,2]
[354724329,1740646232667,-493.78059,0.00015,2]
[354724333,1740646238325,-850.51433408,0.00015,2]
[354724334,1740646238377,-10991.17998013,0.00015,2]
[354724335,1740646238484,-527264.31030999,0.00015,2]
[354724336,1740646238493,-174044.76210164,0.00015,2]
[354724337,1740646238503,-450.0,0.0001639,2]
[354724338,1740646238513,-150.0,0.0001639,2]
[354724339,1740646238524,-150.0,0.0001639,2]
[354724340,1740646238534,-420.0,0.00016416,2]
[354724342,1740646238543,-154.84752053,0.00017533,2]
[354724344,1740646238552,-587.0,0.00017966,2]
[354724346,1740646238563,-374.62,0.0001852,2]
[354724348,1740646238572,-219.32,0.000186,2]
[354724350,1740646238581,-642.15775772,0.000195,2]
[354724352,1740646238591,-823.0,0.00019663,2]
[354724354,1740646238600,-3377.98725457,0.00019678,2]
[354724356,1740646238609,-205.25154828,0.000199,2]
[354724358,1740646238619,-306.61480414,0.00019999,2]
[354724360,1740646238628,-91229.86342993,0.0002,2]
[354724362,1740646238637,-134820.72510765,0.0002,2]
[354724364,1740646238646,-298.83042696,0.0002,2]
[354724366,1740646238656,-10000.0,0.0002,2]
[354724368,1740646238665,-1471.0882932,0.0002,2]
[354724370,1740646238675,-4269.43571343,0.0002,2]
[354724371,1740646238684,-7500.0,0.0002,2]
[354724373,1740646238694,-3839.62133421,0.0002,2]
[354724376,1740646238703,-45806.54367065,0.0002,2]
[354724377,1740646238712,-3950.0,0.0002,2]
[354724379,1740646238722,-1241.83981982,0.0002,2]
[354724382,1740646238731,-11748.91441347,0.0002,2]
[354724383,1740646238741,-11730.71034132,0.0002011,2]
[354724386,1740646238750,-41781.14833529,0.0002015,2]
[354724388,1740646238760,-1661.45595593,0.0002015,2]
[354724390,1740646238771,-151.0,0.0002015,2]
[354724391,1740646238780,-151.0,0.0002015,2]
[354724394,1740646238790,-151.0,0.0002015,2]
[354724395,1740646238800,-151.0,0.0002015,2]
[354724397,1740646238810,-151.0,0.0002015,2]
[354724400,1740646238821,-151.0,0.0002015,2]
[354724401,1740646238831,-151.0,0.0002015,2]
[354724403,1740646238840,-151.0,0.0002015,2]
[354724404,1740646238851,-151.0,0.0002015,2]
[354724406,1740646238861,-157.097447,0.0002015,2]
[354724408,1740646238869,-157.097447,0.0002015,2]
[354724410,1740646238879,-151.0,0.0002015,2]
[354724412,1740646238889,-154.13805979,0.00020275,2]
[354724414,1740646238898,-250.0,0.00020555,2]
[354724416,1740646238907,-1000.0,0.00020676,2]
[354724418,1740646238917,-374.62,0.00020784,2]
[354724420,1740646238926,-200.0,0.00020812,2]
[354724422,1740646238939,-250.0,0.00021,2]
[354724424,1740646238948,-201.13836433,0.000215,2]
[354724426,1740646238956,-1152.0,0.0002152,2]
[354724428,1740646238965,-612.37,0.00021551,2]
[354724430,1740646238974,-18004.45,0.00021554,2]
[354724432,1740646238983,-169.17,0.00021946,2]
[354724434,1740646238992,-300.0,0.00022426,2]
[354724436,1740646239001,-625.78029305,0.00022711,2]
[354724438,1740646239010,-727.13857629,0.00022711,2]
[354724440,1740646239019,-300.0,0.00023,2]
[354724442,1740646239030,-280.62157018,0.00023,2]
[354724444,1740646239039,-189.119,0.00023039,2]
[354724446,1740646239048,-876.064,0.00023039,2]
[354724448,1740646239060,-374.62,0.00023048,2]
[354724450,1740646239070,-1000.0,0.00023261,2]
[354724452,1740646239079,-335.0,0.00023552,2]
[354724454,1740646239088,-3377.98725457,0.00024456,2]
[354724456,1740646239098,-200.0,0.00024542,2]
[354724458,1740646239107,-350.0,0.00025,2]
[354724460,1740646239116,-374.62,0.00025312,2]
[354724462,1740646239125,-193.34,0.00025513,2]
[354724464,1740646239135,-154.13805979,0.0002565,2]
[354724466,1740646239143,-1000.0,0.00025845,2]
[354724468,1740646239153,-43532.33634212,0.0002597,2]
[354724470,1740646239162,-205.25154824,0.00026756,2]
[354724472,1740646239171,-153.67,0.00026849,2]
[354724474,1740646239180,-184.48,0.00026849,2]
[354724476,1740646239189,-400.0,0.00027,2]
[354724478,1740646239198,-784.72902088,0.00027124,2]
[354724480,1740646239207,-374.62,0.00027576,2]
[354724482,1740646239216,-170.8973482,0.00028116,2]
[354724484,1740646239225,-7034.69771012,0.00028126,8]
[354724486,1740646239234,-743.50119354,0.00028126,2]
[354724488,1740646239243,-504.0,0.00028411,2]
[354724490,1740646239252,-1000.0,0.0002843,2]
[354724492,1740646239261,-450.0,0.00029,2]
[354724494,1740646239270,-3377.98725457,0.00029233,2]
[354724496,1740646239279,-374.62,0.0002984,2]
[354724498,1740646239288,-500.0,0.00031,2]
[354724500,1740646239297,-1000.0,0.00031015,2]
[354724502,1740646239307,-154.13805979,0.00031025,2]
[354724504,1740646239316,-374.62,0.00032104,2]
[354724506,1740646239325,-550.0,0.00033,2]
[354724508,1740646239334,-205.25154824,0.00033611,2]
[354724510,1740646239343,-1101.2551906,0.00034,2]
[354724512,1740646239352,-3377.98725457,0.00034011,2]
[354724514,1740646239361,-374.62,0.00034368,2]
[354724516,1740646239371,-600.0,0.00035,2]
[354724518,1740646239380,-154.13805979,0.000364,2]
[354724520,1740646239389,-374.62,0.00036631,2]
[354724522,1740646239398,-170.79286561,0.000374,2]
[354724524,1740646239407,-193.34,0.00038269,2]
[354724526,1740646239417,-3377.98725457,0.00038789,2]
[354724528,1740646239426,-374.62,0.00038895,2]
[354724529,1740646239435,-205.25154824,0.00040467,2]
[354724531,1740646239446,-153.67,0.00040616,2]
[354724533,1740646239455,-261.55,0.00041064,2]
[354724535,1740646239465,-374.62,0.00041159,2]
[354724537,1740646239474,-261.55,0.0004128,2]
[354724539,1740646239483,-261.55,0.00041496,2]
[354724541,1740646239492,-261.55,0.00041712,2]
[354724543,1740646239501,-261.55,0.00041928,2]
[354724545,1740646239510,-261.55,0.00042144,2]
[354724547,1740646239519,-261.55,0.0004236,2]
[354724549,1740646239528,-261.55,0.00042577,2]
[354724551,1740646239537,-261.55,0.00042793,2]
[354724553,1740646239546,-302.151,0.00042852,2]
[354724555,1740646239555,-1276.0,0.00042852,2]
[354724557,1740646239564,-150.0,0.00042852,2]
[354724559,1740646239573,-3923.0,0.00042852,2]
[354724561,1740646239583,-261.55,0.00043009,2]
[354724563,1740646239592,-261.55,0.00043225,2]
[354724565,1740646239601,-374.62,0.00043423,2]
[354724566,1740646239610,-261.55,0.00043441,2]
[354724567,1740646239619,-641.18,0.00043513,2]
[354724568,1740646239627,-999.99,0.00043513,2]
[354724569,1740646239636,-9999.99,0.00043513,2]
[354724570,1740646239645,-150.99,0.00043513,2]
[354724571,1740646239653,-2368.77,0.00043513,2]
[354724572,1740646239662,-261.55,0.00043657,2]
[354724573,1740646239671,-261.55,0.00043873,2]
[354724574,1740646239679,-261.55,0.0004409,2]
[354724575,1740646239688,-261.55,0.00044306,2]
[354724576,1740646239697,-261.55,0.00044522,2]
[354724577,1740646239706,-1305.73972739,0.0004462,2]
[354724578,1740646239714,-261.55,0.00044738,2]
[354724579,1740646239723,-150.0,0.000449,2]
[354724580,1740646239732,-261.55,0.00044954,2]
[354724581,1740646239741,-150.0,0.00045,2]
[354724582,1740646239749,-261.55,0.0004517,2]
[354724583,1740646239758,-374.62,0.00045687,2]
[354724584,1740646239768,-827.788,0.00045852,2]
[354724585,1740646239780,-150.0,0.00045852,2]
[354724586,1740646239789,-3911.0,0.00045852,2]
[354724587,1740646239798,-157.581798,0.00046587,4]
[354724588,1740646239807,-1534.0,0.000466,2]
[354724590,1740646239817,-374.62,0.00047951,2]
[354724592,1740646239827,-150.05014539,0.00049,2]
[354724594,1740646239836,-1534.78450859,0.000493,2]
[354724596,1740646239845,-166.0,0.00050036,2]
[354724598,1740646239855,-374.62,0.00050215,2]
[354724600,1740646239867,-151.7249457,0.00051333,120]
[354724602,1740646239876,-157.097447,0.00051334,120]
[354724604,1740646239885,-157.097447,0.00051334,120]
[354724606,1740646239895,-374.62,0.00052479,2]
[354724608,1740646239904,-154.13805979,0.00052525,15]
[354724610,1740646239913,-157.097447,0.00053,120]
[354724612,1740646239922,-157.097447,0.00053,120]
[354724614,1740646239932,-3377.98725457,0.00053122,15]
[354724616,1740646239942,-300.0,0.000535,15]
[354724618,1740646239952,-300.0,0.000535,15]
[354724620,1740646239961,-300.0,0.000535,15]
[354724622,1740646239971,-300.0,0.000535,15]
[354724624,1740646239980,-585.16984655,0.000535,15]
[354724626,1740646239990,-300.0,0.00053817,7]
[354724628,1740646239999,-150.0,0.0005389,7]
[354724630,1740646240008,-150.0,0.00053953,7]
[354724632,1740646240018,-157.097447,0.00054,120]
[354724634,1740646240027,-157.097447,0.00054,120]
[354724636,1740646240037,-150.0,0.00054173,7]
[354724638,1740646240046,-150.0,0.00054176,7]
[354724640,1740646240055,-150.0,0.00054178,7]
[354724642,1740646240065,-150.0,0.00054183,7]
[354724644,1740646240074,-150.0,0.00054188,7]
[354724646,1740646240083,-150.0,0.00054188,7]
[354724648,1740646240092,-150.0,0.00054189,7]
[354724650,1740646240101,-150.0,0.00054201,7]
[354724652,1740646240110,-150.0,0.00054205,7]
[354724654,1740646240119,-150.0,0.00054206,7]
[354724656,1740646240128,-150.0,0.00054216,7]
[354724658,1740646240137,-150.0,0.00054217,7]
[354724660,1740646240147,-150.0,0.00054219,7]
[354724662,1740646240156,-150.0,0.0005422,7]
[354724664,1740646240165,-150.0,0.0005422,7]
[354724666,1740646240174,-150.0,0.00054242,7]
[354724668,1740646240183,-150.0,0.00054247,7]
[354724670,1740646240192,-150.0,0.00054259,7]
[354724672,1740646240201,-150.0,0.0005426,7]
[354724674,1740646240210,-150.0,0.00054265,7]
[354724676,1740646240219,-150.0,0.00054268,7]
[354724678,1740646240228,-150.0,0.00054276,7]
[354724680,1740646240237,-150.0,0.00054276,7]
[354724682,1740646240246,-150.0,0.0005428,7]
[354724684,1740646240255,-150.0,0.00054289,7]
[354724686,1740646240264,-150.0,0.00054294,7]
[354724688,1740646240273,-150.0,0.00054297,7]
[354724690,1740646240282,-150.0,0.00054301,7]
[354724692,1740646240291,-150.0,0.00054308,7]
[354724694,1740646240300,-150.0,0.00054308,7]
[354724696,1740646240311,-150.0,0.00054312,7]
[354724698,1740646240320,-150.0,0.00054315,7]
[354724700,1740646240329,-150.0,0.00054318,7]
[354724702,1740646240338,-150.0,0.0005432,7]
[354724704,1740646240347,-150.0,0.00054321,7]
[354724706,1740646240356,-150.0,0.00054329,7]
[354724707,1740646240365,-150.0,0.0005433,7]
[354724709,1740646240374,-150.0,0.00054331,7]
[354724711,1740646240383,-150.0,0.00054332,7]
[354724713,1740646240392,-150.0,0.00054349,7]
[354724715,1740646240402,-150.0,0.00054352,7]
[354724718,1740646240420,-150.0,0.00054354,7]
[354724720,1740646240431,-150.0,0.00054364,7]
[354724723,1740646240441,-150.0,0.00054366,7]
[354724725,1740646240451,-150.0,0.00054368,7]
[354724727,1740646240460,-150.0,0.0005437,7]
[354724729,1740646240469,-150.0,0.00054376,7]
[354724731,1740646240480,-150.0,0.00054379,7]
[354724733,1740646240490,-150.0,0.00054383,7]
[354724735,1740646240499,-150.0,0.00054386,7]
[354724737,1740646240508,-150.0,0.00054389,7]
[354724739,1740646240517,-150.0,0.00054391,7]
[354724741,1740646240526,-150.0,0.00054399,7]
[354724743,1740646240535,-150.0,0.00054399,7]
[354724745,1740646240544,-150.0,0.000544,7]
[354724747,1740646240554,-150.0,0.00054401,7]
[354724749,1740646240563,-150.0,0.00054401,7]
[354724751,1740646240572,-150.0,0.00054402,7]
[354724753,1740646240581,-150.0,0.00054405,7]
[354724755,1740646240591,-150.0,0.00054406,7]
[354724757,1740646240600,-150.0,0.00054408,7]
[354724759,1740646240609,-150.0,0.00054409,7]
[354724761,1740646240619,-150.0,0.00054417,7]
[354724763,1740646240629,-150.0,0.00054421,7]
[354724765,1740646240639,-150.0,0.00054423,7]
[354724767,1740646240648,-150.0,0.00054424,7]
[354724769,1740646240657,-150.0,0.00054425,7]
[354724771,1740646240667,-150.0,0.00054427,7]
[354724773,1740646240676,-150.0,0.00054436,7]
[354724775,1740646240685,-150.0,0.00054437,7]
[354724777,1740646240695,-150.0,0.00054438,7]
[354724779,1740646240704,-150.0,0.0005444,7]
[354724781,1740646240713,-150.0,0.00054441,7]
[354724783,1740646240723,-1000.0,0.00054442,30]
[354724785,1740646240732,-150.0,0.00054442,7]
[354724787,1740646240741,-150.0,0.0005445,7]
[354724789,1740646240751,-300.0,0.00054451,7]
[354724790,1740646240759,-150.0,0.00054462,7]
[354724792,1740646240770,-150.0,0.00054474,7]
[354724794,1740646240780,-150.0,0.00054479,7]
[354724796,1740646240789,-150.0,0.0005448,7]
[354724797,1740646240799,-150.0,0.0005449,7]
[354724799,1740646240808,-150.0,0.00054518,7]
[354724801,1740646240818,-150.0,0.00054519,7]
[354724803,1740646240827,-150.0,0.00054529,7]
[354724805,1740646240836,-150.0,0.00054538,7]
[354724807,1740646240847,-150.0,0.00054546,7]
[354724809,1740646240857,-150.0,0.00054549,7]
[354724811,1740646240866,-150.0,0.00054549,7]
[354724813,1740646240875,-409.31797453,0.00054553,30]
[354724815,1740646240885,-150.0,0.00054555,7]
[354724817,1740646240895,-150.0,0.0005456,7]
[354724819,1740646240904,-1000.0,0.00054577,30]
[354724821,1740646240914,-150.0,0.00054578,7]
[354724823,1740646240923,-1000.0,0.00054586,30]
[354724825,1740646240933,-1000.0,0.00054713,30]
[354724827,1740646240942,-374.62,0.00054743,2]
[354724829,1740646240953,-161.64144205,0.0005479,7]
[354724831,1740646240962,-4000.0,0.00054795,30]
[354724833,1740646240971,-4397.742895,0.00054824,2]
[354724835,1740646240981,-4535.3119309,0.00054824,2]
[354724837,1740646240991,-906.7949609,0.00054824,2]
[354724839,1740646241001,-10214.9004067,0.00054862,2]
[354724841,1740646241010,-88888.0,0.000549,120]
[354724843,1740646241020,-151.0,0.000549,120]
[354724845,1740646241030,-151.0,0.000549,120]
[354724847,1740646241040,-151.0,0.000549,120]
[354724849,1740646241050,-151.0,0.000549,120]
[354724851,1740646241060,-151.0,0.000549,120]
[354724853,1740646241069,-151.0,0.000549,120]
[354724855,1740646241079,-152.118834,0.000549,120]
[354724857,1740646241088,-151.0,0.000549,120]
[354724859,1740646241098,-151.0,0.000549,120]
[354724861,1740646241107,-151.0,0.000549,120]
[354724863,1740646241117,-151.0,0.00054952,120]
[354724865,1740646241127,-151.0,0.00054952,120]
[354724867,1740646241136,-236.670056,0.00054952,120]
[354724869,1740646241146,-151.0,0.00054952,120]
[354724871,1740646241155,-151.0,0.00054952,120]
[354724887,1740646241298,-151.0,0.00054952,120]
[354724889,1740646241309,-151.812572,0.00054952,120]
[354724891,1740646241318,-151.0,0.00054952,120]
[354724893,1740646241327,-151.0,0.00054952,120]
[354724895,1740646241336,-151.0,0.00054952,120]
[354724897,1740646241345,-249.84768,0.00054952,120]
[354724899,1740646241354,-151.0,0.00054952,120]
[354724901,1740646241364,-337.459539,0.00054952,120]
[354724903,1740646241373,-151.0,0.00054952,120]
[354724905,1740646241382,-337.459539,0.00054952,120]
[354724907,1740646241391,-151.0,0.00054952,120]
[354724909,1740646241400,-700.0,0.0005497,30]
[354724911,1740646241409,-700.0,0.0005498,30]
[354724913,1740646241419,-700.0,0.0005499,30]
[354724915,1740646241428,-151.0,0.0005499,120]
[354724917,1740646241438,-152.03,0.0005499,120]
[354724919,1740646241447,-152.03,0.0005499,120]
[354724921,1740646241457,-152.03,0.0005499,120]
[354724923,1740646241466,-152.03,0.0005499,120]
[354724925,1740646241475,-152.03,0.0005499,120]
[354724927,1740646241484,-152.03,0.0005499,120]
[354724929,1740646241493,-152.03,0.0005499,120]
[354724931,1740646241503,-152.03,0.0005499,120]
[354724933,1740646241512,-500.0,0.00054999,120]
[354724935,1740646241521,-500.0,0.00055,120]
[354724937,1740646241531,-500.0,0.00055,120]
[354724939,1740646241540,-500.0,0.00055,120]
[354724941,1740646241549,-500.0,0.00055,120]
[354724943,1740646241559,-500.0,0.00055,120]
[354724945,1740646241568,-500.0,0.00055,120]
[354724947,1740646241577,-500.0,0.00055,120]
[354724949,1740646241586,-500.0,0.00055,120]
[354724951,1740646241595,-100414.17681096,0.00055,120]
[354724953,1740646241604,-1000000.0,0.00055,120]
[354724955,1740646241613,-151.0,0.00055,120]
[354724957,1740646241622,-151.0,0.00055,120]
[354724959,1740646241631,-151.0,0.00055,120]
[354724961,1740646241641,-157.097447,0.00055,120]
[354724963,1740646241650,-157.097447,0.00055,120]
[354724965,1740646241659,-151.0,0.00055,120]
[354724967,1740646241669,-207.154708,0.00055,120]
[354724969,1740646241678,-151.0,0.00055,120]
[354724971,1740646241687,-151.0,0.00055,120]
[354724973,1740646241696,-151.0,0.00055,3]
[354724975,1740646241706,-151.0,0.00055,3]
[354724977,1740646241714,-205.620536,0.00055,120]
[354724979,1740646241724,-205.620536,0.00055,120]
[354724981,1740646241733,-205.620536,0.00055,120]
[354724983,1740646241742,-151.0,0.00055,30]
[354724985,1740646241751,-193.362182,0.00055,30]
[354724987,1740646241759,-151.0,0.00055,120]
[354724989,1740646241771,-151.0,0.00055,120]
[354724991,1740646241782,-151.0,0.00055,120]
[354724993,1740646241791,-151.0,0.00055,120]
[354724995,1740646241799,-152.219353,0.00055,120]
[354724997,1740646241810,-151.0,0.00055,120]
[354724999,1740646241820,-151.0,0.00055,120]
[354725001,1740646241829,-151.0,0.00055,120]
[354725003,1740646241837,-151.0,0.00055,120]
[354725005,1740646241846,-151.0,0.00055,120]
[354725006,1740646241856,-151.0,0.00055,120]
[354725009,1740646241867,-151.0,0.00055,120]
[354725010,1740646241875,-151.0,0.00055,120]
[354725012,1740646241885,-151.0,0.00055,120]
[354725014,1740646241894,-151.0,0.00055,120]
[354725016,1740646241903,-151.0,0.00055,120]
[354725018,1740646241912,-151.0,0.00055,120]
[354725020,1740646241922,-151.0,0.00055,120]
[354725022,1740646241931,-287.645605,0.00055,120]
[354725024,1740646241940,-151.0,0.00055,120]
[354725026,1740646241949,-151.0,0.00055,120]
[354725028,1740646241958,-337.459539,0.00055,120]
[354725030,1740646241967,-337.459539,0.00055,120]
[354725032,1740646241976,-151.0,0.00055,120]
[354725034,1740646241985,-151.0,0.00055041,120]
[354725036,1740646241994,-3343.33,0.00055334,120]
[354725038,1740646242004,-1373.82258219,0.000558,30]
[354725040,1740646242013,-166.0,0.00055833,120]
[354725042,1740646242022,-156.79378864,0.000559,2]
[354725044,1740646242031,-512.30796642,0.000559,2]
[354725046,1740646242040,-175.39742005,0.000559,2]
[354725048,1740646242050,-152.03,0.0005599,120]
[354725050,1740646242059,-152.03,0.0005599,120]
[354725052,1740646242068,-152.03,0.0005599,120]
[354725054,1740646242077,-152.03,0.0005599,120]
[354725056,1740646242085,-152.03,0.0005599,120]
[354725058,1740646242095,-152.03,0.0005599,120]
[354725060,1740646242104,-152.03,0.0005599,120]
[354725062,1740646242112,-152.03,0.0005599,120]
[354725064,1740646242122,-152.03,0.0005599,120]
[354725066,1740646242131,-152.03,0.0005599,120]
[354725068,1740646242139,-152.03,0.0005599,120]
[354725070,1740646242149,-152.03,0.0005599,120]
[354725072,1740646242158,-152.03,0.0005599,120]
[354725074,1740646242167,-152.03,0.0005599,120]
[354725076,1740646242176,-152.03,0.0005599,120]
[354725077,1740646242188,-3083.25015798,0.00056,52]
[354725079,1740646242197,-500.0,0.00056,120]
[354725082,1740646242208,-500.0,0.00056,120]
[354725084,1740646242218,-500.0,0.00056,120]
[354725086,1740646242227,-500.0,0.00056,120]
[354725088,1740646242236,-500.0,0.00056,120]
[354725090,1740646242245,-500.0,0.00056,120]
[354725092,1740646242254,-500.0,0.00056,120]
[354725094,1740646242263,-500.0,0.00056,120]
[354725096,1740646242272,-500.0,0.00056,120]
[354725097,1740646242281,-500.0,0.00056,120]
[354725100,1740646242291,-500.0,0.00056,120]
[354725101,1740646242300,-500.0,0.00056,120]
[354725104,1740646242309,-500.0,0.00056,120]
[354725105,1740646242318,-500.0,0.00056,120]
[354725107,1740646242327,-500.0,0.00056,120]
[354725109,1740646242336,-500.0,0.00056,120]
[354725111,1740646242345,-500.0,0.00056,120]
[354725113,1740646242355,-1011.9788326,0.00056,120]
[354725116,1740646242364,-1000000.0,0.00056,120]
[354725117,1740646242373,-151.0,0.00056,120]
[354725119,1740646242382,-157.097447,0.00056,120]
[354725121,1740646242391,-157.09745,0.00056,120]
[354725123,1740646242400,-151.0,0.00056,120]
[354725125,1740646242409,-151.0,0.00056,3]
[354725127,1740646242418,-205.620536,0.00056,120]
[354725129,1740646242427,-205.620536,0.00056,120]
[354725131,1740646242436,-151.0,0.00056,120]
[354725133,1740646242445,-151.0,0.00056,120]
[354725135,1740646242454,-151.0,0.00056,120]
[354725137,1740646242463,-151.0,0.00056,120]
[354725139,1740646242473,-151.0,0.00056,120]
[354725141,1740646242482,-151.0,0.00056,120]
[354725143,1740646242491,-151.0,0.00056,120]
[354725145,1740646242500,-151.0,0.00056,120]
[354725147,1740646242509,-151.0,0.00056,120]
[354725149,1740646242518,-151.0,0.00056,120]
[354725151,1740646242527,-151.0,0.00056,120]
[354725153,1740646242536,-151.0,0.00056,120]
[354725155,1740646242545,-337.459539,0.00056,120]
[354725157,1740646242555,-337.459539,0.00056,120]
[354725159,1740646242564,-151.0,0.00056,120]
[354725161,1740646242573,-152.03,0.00056125,120]
[354725163,1740646242583,-150.0,0.00056135,120]
[354725165,1740646242592,-500.0,0.00056135,120]
[354725167,1740646242602,-200.0,0.00056135,120]
[354725169,1740646242611,-1088.0,0.00056135,120]
[354725171,1740646242620,-150.0,0.00056135,120]
[354725173,1740646242629,-150.0,0.00056162,120]
[354725175,1740646242638,-500.0,0.00056162,120]
[354725177,1740646242648,-1088.0,0.00056162,120]
[354725179,1740646242657,-150.0,0.00056162,120]
[354725181,1740646242666,-152.0,0.0005619,120]
[354725183,1740646242676,-500.0,0.0005619,120]